fUSD/lending_fUSD_20260529
["ID","MTS","AMOUNT","RATE_DAILY","PERIOD"]
[423294545,1780038665000,-426.28,0.000152,14]
[423294546,1780038665000,-1000.0,0.000152,2]
[423294543,1780038665000,-350.0,0.00015098,2]
[423294542,1780038665000,-10000.0,0.00015094,2]
[423294544,1780038665000,-193.64,0.00015194,2]
[423294540,1780038665000,-156.81,0.0001507,2]
[423294541,1780038665000,-15000.0,0.00015088,2]
[423294569,1780038665000,-215.5484138,0.00016,3]
[423294558,1780038665000,-337.39,0.000156,14]
[423294571,1780038665000,-300.0,0.00016,2]
[423294567,1780038665000,-167.89454848,0.00015978,7]
[423294572,1780038665000,-160.0,0.00016,3]
[423294574,1780038665000,-700.0,0.00016059,2]
[423294601,1780038665000,-500.0,0.00016438,2]
[423294599,1780038665000,-500.0,0.00016438,2]
[423294598,1780038665000,-500.0,0.00016438,2]
[423294596,1780038665000,-500.0,0.00016438,2]
[423294597,1780038665000,-500.0,0.00016438,2]
[423294594,1780038665000,-154.0,0.00016438,2]
[423294595,1780038665000,-500.0,0.00016438,2]
[423294593,1780038665000,-771.0,0.00016438,2]
[423294592,1780038665000,-7609.1,0.00016438,2]
[423294590,1780038665000,-666.0,0.00016437,2]
[423294591,1780038665000,-300.0,0.00016437,2]
[423294588,1780038665000,-300.0,0.00016437,2]
[423294585,1780038665000,-300.0,0.00016437,2]
[423294587,1780038665000,-300.0,0.00016437,2]
[423294600,1780038665000,-500.0,0.00016438,2]
[423294586,1780038665000,-300.0,0.00016437,2]
[423294589,1780038665000,-300.0,0.00016437,2]
[423294602,1780038665000,-500.0,0.00016438,2]
[423294573,1780038665000,-151.0,0.00016,4]
[423294578,1780038665000,-5168.77522196,0.000163,2]
[423294575,1780038665000,-156.81,0.00016074,2]
[423294577,1780038665000,-578.0,0.00016254,2]
[423294570,1780038665000,-5168.77522196,0.00016,2]
[423294579,1780038665000,-200.0,0.0001634,2]
[423294580,1780038665000,-167.19164087,0.00016405,2]
[423294582,1780038665000,-300.0,0.00016437,2]
[423294581,1780038665000,-179.464087,0.00016435,2]
[423294583,1780038665000,-300.0,0.00016437,2]
[423294576,1780038665000,-5168.77522196,0.000162,2]
[423294584,1780038665000,-300.0,0.00016437,2]
[423294644,1780038666000,-200.0,0.000169,3]
[423294646,1780038666000,-200.0,0.000169,3]
[423294638,1780038666000,-200.0,0.000168,3]
[423294639,1780038666000,-3292.0,0.00016843,2]
[423294635,1780038666000,-168.09,0.00016712,2]
[423294636,1780038666000,-3215.0,0.00016774,2]
[423294634,1780038666000,-5168.77522196,0.000167,2]
[423294633,1780038666000,-2939.18,0.000166,2]
[423294641,1780038666000,-200.83310984,0.000169,3]
[423294632,1780038666000,-533.58027305,0.00016597,2]
[423294637,1780038666000,-5168.77522196,0.000168,2]
[423294640,1780038666000,-500.0,0.00016856,2]
[423294652,1780038666000,-418.0,0.00016977,2]
[423294642,1780038666000,-200.0,0.000169,3]
[423294643,1780038666000,-200.0,0.000169,3]
[423294648,1780038666000,-200.0,0.000169,3]
[423294649,1780038666000,-200.0,0.000169,3]
[423294651,1780038666000,-201.51348902,0.000169,3]
[423294654,1780038666000,-5168.77522196,0.00017,2]
[423294653,1780038666000,-6066.0,0.00016977,2]
[423294650,1780038666000,-200.0,0.000169,3]
[423294655,1780038666000,-151.0,0.00017,4]
[423294657,1780038666000,-156.81,0.00017079,2]
[423294656,1780038666000,-797.0,0.00017067,2]
[423294631,1780038666000,-156.81,0.00016577,2]
[423294645,1780038666000,-200.0,0.000169,3]
[423294630,1780038666000,-500.0,0.00016574,2]
[423294614,1780038666000,-500.0,0.00016438,2]
[423294629,1780038666000,-585.17348639,0.00016524,2]
[423294604,1780038666000,-501.27069188,0.00016438,2]
[423294603,1780038666000,-500.0,0.00016438,2]
[423294606,1780038666000,-152.0,0.00016438,2]
[423294608,1780038666000,-152.0,0.00016438,2]
[423294610,1780038666000,-152.0,0.00016438,2]
[423294607,1780038666000,-152.0,0.00016438,2]
[423294611,1780038666000,-152.0,0.00016438,2]
[423294605,1780038666000,-264.62090357,0.00016438,2]
[423294609,1780038666000,-152.0,0.00016438,2]
[423294613,1780038666000,-500.0,0.00016438,2]
[423294612,1780038666000,-155.53,0.00016438,10]
[423294658,1780038666000,-500.0,0.00017138,2]
[423294615,1780038666000,-500.0,0.00016438,2]
[423294616,1780038666000,-500.0,0.00016438,2]
[423294617,1780038666000,-500.0,0.00016438,2]
[423294618,1780038666000,-5168.77522196,0.000165,2]
[423294620,1780038666000,-167.89454849,0.00016501,30]
[423294619,1780038666000,-167.89454848,0.00016501,7]
[423294623,1780038666000,-500.0,0.00016524,2]
[423294622,1780038666000,-500.0,0.00016524,2]
[423294621,1780038666000,-500.0,0.00016524,2]
[423294624,1780038666000,-500.0,0.00016524,2]
[423294625,1780038666000,-500.0,0.00016524,2]
[423294627,1780038666000,-500.0,0.00016524,2]
[423294626,1780038666000,-500.0,0.00016524,2]
[423294628,1780038666000,-500.0,0.00016524,2]
[423294659,1780038666000,-150.0,0.00017142,2]
[423294647,1780038666000,-200.0,0.000169,3]
[423294661,1780038666000,-298.951,0.00017142,2]
[423294692,1780038666000,-500.0,0.00017825,2]
[423294694,1780038666000,-3120.0,0.00017845,2]
[423294693,1780038666000,-2000.0,0.00017825,2]
[423294695,1780038666000,-827.70159744,0.0001788,2]
[423294697,1780038666000,-604.08,0.00017889,2]
[423294699,1780038666000,-567.49,0.00017889,2]
[423294698,1780038666000,-564.99,0.00017889,2]
[423294696,1780038666000,-500.0,0.00017889,2]
[423294702,1780038666000,-166.66,0.00017903,2]
[423294705,1780038666000,-8068.6319756,0.00018,2]
[423294701,1780038666000,-1089.73064737,0.0001789,2]
[423294700,1780038666000,-4251.79675852,0.0001789,2]
[423294690,1780038666000,-500.0,0.00017703,2]
[423294704,1780038666000,-500.0,0.00017985,2]
[423294707,1780038666000,-1467.22211221,0.00018,2]
[423294706,1780038666000,-1397.30019445,0.00018,2]
[423294709,1780038666000,-151.0,0.00018,4]
[423294708,1780038666000,-350.0,0.00018,2]
[423294710,1780038666000,-154.0,0.00018082,2]
[423294715,1780038666000,-924.98,0.00018084,2]
[423294717,1780038666000,-150.0,0.00018084,2]
[423294712,1780038666000,-300.0,0.00018083,2]
[423294711,1780038666000,-300.0,0.00018083,2]
[423294716,1780038666000,-892.6,0.00018084,2]
[423294660,1780038666000,-160.825,0.00017142,2]
[423294713,1780038666000,-666.0,0.00018083,2]
[423294703,1780038666000,-1101.0,0.0001792,2]
[423294691,1780038666000,-163.61,0.000178,2]
[423294714,1780038666000,-300.0,0.00018083,2]
[423294688,1780038666000,-500.77,0.00017572,2]
[423294662,1780038666000,-150.199,0.00017142,2]
[423294689,1780038666000,-156.81,0.00017581,2]
[423294663,1780038666000,-150.0,0.00017142,2]
[423294667,1780038666000,-1272.0,0.00017142,2]
[423294666,1780038666000,-1356.0,0.00017142,2]
[423294665,1780038666000,-3574.066,0.00017142,2]
[423294668,1780038666000,-525.0,0.00017142,2]
[423294669,1780038666000,-1230.973,0.00017142,2]
[423294670,1780038666000,-166.66,0.00017179,2]
[423294671,1780038666000,-5168.77522196,0.000172,2]
[423294674,1780038666000,-5168.77522196,0.000173,2]
[423294676,1780038666000,-1705.02,0.000174,2]
[423294673,1780038666000,-154.0,0.0001726,2]
[423294664,1780038666000,-928.0,0.00017142,2]
[423294672,1780038666000,-771.0,0.0001726,2]
[423294683,1780038666000,-166.66,0.00017541,2]
[423294677,1780038666000,-500.0,0.00017421,2]
[423294681,1780038666000,-152.0,0.00017536,2]
[423294680,1780038666000,-152.0,0.00017536,2]
[423294678,1780038666000,-152.0,0.00017536,2]
[423294679,1780038666000,-152.0,0.00017536,2]
[423294682,1780038666000,-153.0,0.00017536,2]
[423294684,1780038666000,-7435.16,0.00017572,2]
[423294685,1780038666000,-1517.28,0.00017572,2]
[423294687,1780038666000,-8843.02,0.00017572,2]
[423294686,1780038666000,-5614.84,0.00017572,2]
[423294675,1780038666000,-248.72,0.000174,2]
[423294757,1780038667000,-1397.30019445,0.000185,2]
[423294756,1780038667000,-427.71,0.00018426,2]
[423294755,1780038667000,-7609.1,0.0001841,2]
[423294749,1780038667000,-300.0,0.00018292,2]
[423294753,1780038667000,-1397.30019445,0.000184,2]
[423294752,1780038667000,-20856.66,0.00018356,2]
[423294751,1780038667000,-300.0,0.00018292,2]
[423294758,1780038667000,-1467.22211221,0.000185,2]
[423294748,1780038667000,-300.0,0.00018292,2]
[423294754,1780038667000,-1467.22211221,0.000184,2]
[423294759,1780038667000,-4609.0,0.00018527,2]
[423294765,1780038667000,-427.71,0.00018696,2]
[423294760,1780038667000,-722.05,0.00018536,2]
[423294762,1780038667000,-399.47,0.00018558,2]
[423294763,1780038667000,-166.66,0.00018626,2]
[423294764,1780038667000,-164.39,0.00018626,2]
[423294767,1780038667000,-1467.22211221,0.000187,2]
[423294769,1780038667000,-1397.30019445,0.000189,2]
[423294770,1780038667000,-1467.22211221,0.000189,2]
[423294768,1780038667000,-184.0,0.00018816,2]
[423294766,1780038667000,-1397.30019445,0.000187,2]
[423294771,1780038667000,-154.0,0.00018904,2]
[423294747,1780038667000,-300.0,0.00018292,2]
[423294773,1780038667000,-722.05,0.00018988,2]
[423294761,1780038667000,-3026.0,0.00018541,2]
[423294743,1780038667000,-167.19164087,0.0001826,2]
[423294735,1780038667000,-3311.79,0.00018084,2]
[423294745,1780038667000,-500.0,0.00018268,2]
[423294774,1780038667000,-166.66,0.00018988,2]
[423294718,1780038667000,-500.0,0.00018084,2]
[423294719,1780038667000,-1045.01,0.00018084,2]
[423294720,1780038667000,-219.17,0.00018084,2]
[423294721,1780038667000,-150.0,0.00018084,2]
[423294725,1780038667000,-2500.0,0.00018084,2]
[423294722,1780038667000,-158.59,0.00018084,2]
[423294724,1780038667000,-261.57,0.00018084,2]
[423294723,1780038667000,-150.0,0.00018084,2]
[423294726,1780038667000,-817.52,0.00018084,2]
[423294727,1780038667000,-722.05,0.00018084,2]
[423294728,1780038667000,-1000.0,0.00018084,2]
[423294746,1780038667000,-300.0,0.00018292,2]
[423294729,1780038667000,-122761.76,0.00018084,2]
[423294731,1780038667000,-500.0,0.00018084,2]
[423294733,1780038667000,-289.63,0.00018084,2]
[423294734,1780038667000,-186.45,0.00018084,2]
[423294736,1780038667000,-200.0,0.00018084,2]
[423294740,1780038667000,-2939.18,0.000182,2]
[423294738,1780038667000,-155.41,0.00018084,2]
[423294739,1780038667000,-156.81,0.00018084,2]
[423294737,1780038667000,-163.5,0.00018084,2]
[423294732,1780038667000,-230.31,0.00018084,2]
[423294742,1780038667000,-1467.22211221,0.000182,2]
[423294741,1780038667000,-1397.30019445,0.000182,2]
[423294744,1780038667000,-166.66,0.00018264,2]
[423294730,1780038667000,-2000.0,0.00018084,2]
[423294775,1780038667000,-500.0,0.00018999,2]
[423294750,1780038667000,-666.0,0.00018292,2]
[423294772,1780038667000,-427.71,0.00018965,2]
[423294804,1780038667000,-500.0,0.00019,7]
[423294808,1780038667000,-500.0,0.00019,7]
[423294807,1780038667000,-500.0,0.00019,7]
[423294806,1780038667000,-500.0,0.00019,7]
[423294810,1780038667000,-500.0,0.00019,7]
[423294811,1780038667000,-500.0,0.00019,7]
[423294813,1780038667000,-500.0,0.00019,7]
[423294814,1780038667000,-500.0,0.00019,7]
[423294815,1780038667000,-500.0,0.00019,7]
[423294817,1780038667000,-500.0,0.00019,7]
[423294816,1780038667000,-500.0,0.00019,7]
[423294819,1780038667000,-500.0,0.00019,7]
[423294812,1780038667000,-500.0,0.00019,7]
[423294821,1780038667000,-500.0,0.00019,7]
[423294818,1780038667000,-500.0,0.00019,7]
[423294822,1780038667000,-500.0,0.00019,7]
[423294826,1780038667000,-500.0,0.00019,7]
[423294831,1780038667000,-500.0,0.00019,7]
[423294830,1780038667000,-500.0,0.00019,7]
[423294832,1780038667000,-500.0,0.00019,7]
[423294828,1780038667000,-500.0,0.00019,7]
[423294823,1780038667000,-500.0,0.00019,7]
[423294824,1780038667000,-631.24,0.00019,7]
[423294825,1780038667000,-500.0,0.00019,7]
[423294827,1780038667000,-2258.71730431,0.00019,2]
[423294776,1780038667000,-604.08,0.00018999,2]
[423294820,1780038667000,-500.0,0.00019,7]
[423294805,1780038667000,-500.0,0.00019,7]
[423294829,1780038667000,-500.0,0.00019,7]
[423294802,1780038667000,-500.0,0.00019,7]
[423294777,1780038667000,-564.99,0.00018999,2]
[423294809,1780038667000,-500.0,0.00019,7]
[423294779,1780038667000,-300.0,0.00018999,2]
[423294783,1780038667000,-178.79387469,0.00018999,2]
[423294781,1780038667000,-300.0,0.00018999,2]
[423294785,1780038667000,-300.0,0.00018999,2]
[423294784,1780038667000,-666.0,0.00018999,2]
[423294778,1780038667000,-567.49,0.00018999,2]
[423294780,1780038667000,-300.0,0.00018999,2]
[423294786,1780038667000,-151.98,0.00019,2]
[423294787,1780038667000,-500.0,0.00019,7]
[423294789,1780038667000,-500.0,0.00019,7]
[423294788,1780038667000,-500.0,0.00019,7]
[423294782,1780038667000,-300.0,0.00018999,2]
[423294792,1780038667000,-500.0,0.00019,7]
[423294791,1780038667000,-500.0,0.00019,7]
[423294803,1780038667000,-500.0,0.00019,7]
[423294801,1780038667000,-500.0,0.00019,7]
[423294798,1780038667000,-500.0,0.00019,7]
[423294795,1780038667000,-500.0,0.00019,7]
[423294796,1780038667000,-500.0,0.00019,7]
[423294797,1780038667000,-500.0,0.00019,7]
[423294794,1780038667000,-500.0,0.00019,7]
[423294800,1780038667000,-500.0,0.00019,7]
[423294790,1780038667000,-500.0,0.00019,7]
[423294799,1780038667000,-500.0,0.00019,7]
[423294793,1780038667000,-500.0,0.00019,7]
[423294858,1780038668000,-500.0,0.00019,7]
[423294864,1780038668000,-500.0,0.00019,7]
[423294862,1780038668000,-500.0,0.00019,7]
[423294867,1780038668000,-500.0,0.00019,7]
[423294860,1780038668000,-500.0,0.00019,7]
[423294861,1780038668000,-500.0,0.00019,7]
[423294859,1780038668000,-500.0,0.00019,7]
[423294868,1780038668000,-500.0,0.00019,7]
[423294869,1780038668000,-500.0,0.00019,7]
[423294870,1780038668000,-500.0,0.00019,7]
[423294872,1780038668000,-500.0,0.00019,7]
[423294871,1780038668000,-500.0,0.00019,7]
[423294880,1780038668000,-500.0,0.00019,7]
[423294874,1780038668000,-500.0,0.00019,7]
[423294876,1780038668000,-500.0,0.00019,7]
[423294878,1780038668000,-500.0,0.00019,7]
[423294873,1780038668000,-500.0,0.00019,7]
[423294875,1780038668000,-500.0,0.00019,7]
[423294877,1780038668000,-500.0,0.00019,7]
[423294881,1780038668000,-500.0,0.00019,7]
[423294865,1780038668000,-500.0,0.00019,7]
[423294882,1780038668000,-500.0,0.00019,7]
[423294879,1780038668000,-500.0,0.00019,7]
[423294866,1780038668000,-500.0,0.00019,7]
[423294845,1780038668000,-500.0,0.00019,7]
[423294854,1780038668000,-500.0,0.00019,7]
[423294883,1780038668000,-500.0,0.00019,7]
[423294833,1780038668000,-500.0,0.00019,7]
[423294834,1780038668000,-500.0,0.00019,7]
[423294835,1780038668000,-500.0,0.00019,7]
[423294844,1780038668000,-500.0,0.00019,7]
[423294836,1780038668000,-500.0,0.00019,7]
[423294842,1780038668000,-500.0,0.00019,7]
[423294843,1780038668000,-500.0,0.00019,7]
[423294837,1780038668000,-500.0,0.00019,7]
[423294838,1780038668000,-500.0,0.00019,7]
[423294841,1780038668000,-500.0,0.00019,7]
[423294839,1780038668000,-500.0,0.00019,7]
[423294840,1780038668000,-500.0,0.00019,7]
[423294847,1780038668000,-500.0,0.00019,7]
[423294856,1780038668000,-500.0,0.00019,7]
[423294855,1780038668000,-500.0,0.00019,7]
[423294846,1780038668000,-500.0,0.00019,7]
[423294848,1780038668000,-500.0,0.00019,7]
[423294849,1780038668000,-500.0,0.00019,7]
[423294850,1780038668000,-500.0,0.00019,7]
[423294851,1780038668000,-500.0,0.00019,7]
[423294853,1780038668000,-500.0,0.00019,7]
[423294852,1780038668000,-500.0,0.00019,7]
[423294857,1780038668000,-371.99,0.00019,7]
[423294885,1780038668000,-500.0,0.00019,7]
[423294863,1780038668000,-500.0,0.00019,7]
[423294884,1780038668000,-500.0,0.00019,7]
[423294907,1780038668000,-500.0,0.00019,7]
[423294913,1780038668000,-500.0,0.00019,7]
[423294905,1780038668000,-500.0,0.00019,7]
[423294928,1780038668000,-975.0,0.00019,2]
[423294918,1780038668000,-500.0,0.00019,7]
[423294921,1780038668000,-500.0,0.00019,7]
[423294919,1780038668000,-500.0,0.00019,7]
[423294920,1780038668000,-500.0,0.00019,7]
[423294925,1780038668000,-694.71154253,0.00019,2]
[423294926,1780038668000,-1444.0,0.00019,2]
[423294915,1780038668000,-500.0,0.00019,7]
[423294923,1780038668000,-500.0,0.00019,7]
[423294922,1780038668000,-500.0,0.00019,7]
[423294927,1780038668000,-1851.0,0.00019,2]
[423294929,1780038668000,-3779.0,0.00019,2]
[423294930,1780038668000,-3278.0,0.00019,2]
[423294934,1780038668000,-1272.0,0.00019,2]
[423294932,1780038668000,-999.0,0.00019,2]
[423294933,1780038668000,-3477.0,0.00019,2]
[423294936,1780038668000,-3714.86352766,0.00019,2]
[423294931,1780038668000,-1108.0,0.00019,2]
[423294935,1780038668000,-1135.0,0.00019,2]
[423294924,1780038668000,-516.58,0.00019,7]
[423294906,1780038668000,-500.0,0.00019,7]
[423294917,1780038668000,-500.0,0.00019,7]
[423294914,1780038668000,-500.0,0.00019,7]
[423294886,1780038668000,-500.0,0.00019,7]
[423294888,1780038668000,-500.0,0.00019,7]
[423294910,1780038668000,-500.0,0.00019,7]
[423294887,1780038668000,-500.0,0.00019,7]
[423294891,1780038668000,-500.0,0.00019,7]
[423294892,1780038668000,-500.0,0.00019,7]
[423294903,1780038668000,-500.0,0.00019,7]
[423294902,1780038668000,-500.0,0.00019,7]
[423294900,1780038668000,-500.0,0.00019,7]
[423294893,1780038668000,-500.0,0.00019,7]
[423294897,1780038668000,-500.0,0.00019,7]
[423294901,1780038668000,-500.0,0.00019,7]
[423294890,1780038668000,-500.0,0.00019,7]
[423294896,1780038668000,-500.0,0.00019,7]
[423294895,1780038668000,-509.37,0.00019,7]
[423294908,1780038668000,-500.0,0.00019,7]
[423294916,1780038668000,-500.0,0.00019,7]
[423294911,1780038668000,-500.0,0.00019,7]
[423294912,1780038668000,-500.0,0.00019,7]
[423294889,1780038668000,-500.0,0.00019,7]
[423294899,1780038668000,-500.0,0.00019,7]
[423294898,1780038668000,-500.0,0.00019,7]
[423294904,1780038668000,-500.0,0.00019,7]
[423294909,1780038668000,-500.0,0.00019,7]
[423294894,1780038668000,-500.0,0.00019,7]
[423294937,1780038671000,-500.0,0.00014999,2]
[423294939,1780038671000,-500.0,0.00014999,2]
[423294940,1780038671000,-474.55687841,0.00014999,2]
[423294941,1780038671000,-25.44312159,0.00014999,2]
[423294938,1780038671000,-500.0,0.00014999,2]
[423294944,1780038671000,-446.71603005,0.00016977,2]
[423294946,1780038671000,-376.7651855,0.00016977,2]
[423294947,1780038671000,-350.43907689,0.00019,2]
[423294945,1780038671000,-1740.96000304,0.00016977,2]
[423294942,1780038671000,-497.79780456,0.00014999,2]
[423294943,1780038671000,-1073.55878141,0.00016977,2]
[423294948,1780038819000,-1167.26486809,0.00012154,2]
[423294950,1780038846000,-395.72758791,0.00012154,2]
[423294952,1780038847000,1181.99,0.00027125,120]
[423294951,1780038847000,1181.99,0.00024865,120]
[423294956,1780038885000,163.28,0.00010469,2]
[423294955,1780038885000,163.28,9.994e-05,2]
[423294954,1780038885000,163.28,9.518e-05,2]
[423294953,1780038885000,163.28,9.042e-05,2]
[423294957,1780038886000,163.28,0.00010945,2]
[423294958,1780038905000,176.0,0.00025066,120]
[423294959,1780038906000,176.0,0.00026319,120]
[423294960,1780038907000,176.0,0.00027635,120]
[423294961,1780038930000,1000.0,0.0002808,120]
[423294962,1780038953000,1000.0,0.0002808,120]
[423294963,1780039002000,500.0,0.00027999,120]
[423294971,1780039205000,179.0,0.00026023,120]
[423294974,1780039210000,1128.62,0.00028082,120]
[423294973,1780039210000,183.42261256,0.00028,120]
[423294975,1780039218000,366.84522513,0.00028,120]
[423294978,1780039229000,1100.53567539,0.00028,120]
[423294980,1780039246000,550.26783769,0.00028,120]
[423294981,1780039250000,917.11306282,0.00028,120]
[423294983,1780039259000,733.69045026,0.00028,120]
[423294985,1780039341000,1638.22540425,0.0001,2]
[423294986,1780039346000,1093.19087885,9.04e-05,2]
[423294987,1780039455000,150.0,0.00018084,120]
[423294988,1780039627000,806.93,0.00028082,120]
[423294989,1780039629000,-163.28,0.00011421,2]
[423294990,1780039629000,-251.30701311,0.00011797,2]
[423294991,1780039660000,756.91851264,0.00028,120]
[423294992,1780039678000,3000.0,0.00028,120]
[423294994,1780039685000,890.8,0.00027125,120]
[423294993,1780039685000,890.8,0.00024865,120]
[423294995,1780039691000,1000.0,0.00028,120]
[423294997,1780039736000,486.16297472,0.00028,120]
[423294998,1780039740000,1000.0,0.00028081,120]
[423294999,1780039752000,158.8,9.042e-05,2]
[423295000,1780039752000,158.8,9.946e-05,2]
[423295001,1780039752000,158.8,0.0001085,2]
[423295002,1780039764000,500.0,0.00027999,120]
[423295019,1780039832000,-2189.4504754,0.000121,30]
[423295010,1780039832000,-158.8,0.00011754,2]
[423295021,1780039832000,-160.0,0.00012292,2]
[423295012,1780039832000,-99.30298689,0.00011797,2]
[423295014,1780039832000,-163.28,0.00011897,2]
[423295018,1780039832000,-200.0,0.00012,2]
[423295022,1780039832000,-163.28,0.00012373,2]
[423295029,1780039832000,-1260.66576657,0.00012558,2]
[423295023,1780039832000,-169.52064898,0.0001251,2]
[423295025,1780039832000,-39786.46533922,0.00012558,2]
[423295027,1780039832000,-731.58351344,0.00012558,2]
[423295024,1780039832000,-58156.27633828,0.00012558,2]
[423295016,1780039832000,-429.24743,0.00011979,2]
[423295039,1780039838000,-500.0,0.00012572,2]
[423295044,1780039838000,-250.0,0.00012805,2]
[423295047,1780039838000,-500.0,0.00012826,2]
[423295050,1780039838000,-150.0,0.00012906,2]
[423295049,1780039838000,-163.54,0.00012899,2]
[423295054,1780039838000,-150.0,0.00013469,2]
[423295056,1780039838000,-150.0,0.00013488,2]
[423295051,1780039838000,-157.0,0.00013034,2]
[423295058,1780039838000,-150.0,0.00013488,2]
[423295052,1780039838000,-500.0,0.00013102,2]
[423295048,1780039838000,-163.28,0.00012849,2]
[423295042,1780039838000,-158.8,0.00012659,2]
[423295040,1780039838000,-500.0,0.00012572,2]
[423295043,1780039838000,-209.09056759,0.00012792,2]
[423295038,1780039838000,-500.0,0.00012572,2]
[423295041,1780039838000,-221.79992921,0.00012572,2]
[423295046,1780039838000,-534.31253676,0.00012819,2]
[423295036,1780039838000,-500.0,0.00012572,2]
[423295034,1780039838000,-300.0,0.00012572,2]
[423295045,1780039838000,-215.5484138,0.00012815,2]
[423295035,1780039838000,-1200.0,0.00012572,2]
[423295033,1780039838000,-108426.76756327,0.00012558,2]
[423295032,1780039838000,-1754.58005086,0.00012558,2]
[423295031,1780039838000,-5811.76472836,0.00012558,2]
[423295053,1780039838000,-163.28,0.00013325,2]
[423295037,1780039838000,-500.0,0.00012572,2]
[423295057,1780039838000,-151.5224192,0.00013488,2]
[423295061,1780039838000,-150.0,0.00013488,2]
[423295060,1780039838000,-150.0,0.00013488,2]
[423295055,1780039838000,-150.0,0.00013488,2]
[423295090,1780039838000,-500.0,0.00013904,2]
[423295078,1780039838000,-1680.0,0.00013829,2]
[423295079,1780039838000,-2014.14,0.00013836,2]
[423295076,1780039838000,-420.0,0.00013793,2]
[423295077,1780039838000,-163.28,0.00013801,2]
[423295075,1780039838000,-150.0,0.00013737,2]
[423295072,1780039838000,-150.0,0.00013737,2]
[423295085,1780039838000,-500.0,0.00013904,2]
[423295081,1780039838000,-150.0,0.00013862,2]
[423295087,1780039838000,-500.0,0.00013904,2]
[423295083,1780039838000,-500.0,0.00013862,2]
[423295074,1780039838000,-150.0,0.00013737,2]
[423295069,1780039838000,-500.0,0.00013699,2]
[423295073,1780039838000,-150.0,0.00013737,2]
[423295065,1780039838000,-269.5069095,0.00013551,2]
[423295059,1780039838000,-150.0,0.00013488,2]
[423295092,1780039838000,-500.0,0.00013904,2]
[423295070,1780039838000,-500.0,0.00013699,2]
[423295071,1780039838000,-441.01419407,0.00013699,2]
[423295062,1780039838000,-150.0,0.00013488,2]
[423295063,1780039838000,-150.0,0.00013488,2]
[423295066,1780039838000,-158.8,0.00013563,2]
[423295064,1780039838000,-222.72,0.00013515,2]
[423295068,1780039838000,-500.0,0.00013698,2]
[423295067,1780039838000,-150.0,0.00013613,2]
[423295166,1780039839000,-150.0,0.00014487,2]
[423295179,1780039839000,-1161.71,0.00014504,2]
[423295168,1780039839000,-150.0,0.00014487,2]
[423295170,1780039839000,-150.0,0.00014487,2]